fUST/lending_fUST_20251006
["ID","MTS","AMOUNT","RATE_DAILY","PERIOD"]
[389519401,1759693832238,-300.0,0.00016336,2]
[389519402,1759693832247,-300.0,0.00016336,2]
[389519403,1759693832255,-6511.00637604,0.00016338,2]
[389519404,1759693832267,-850.00614396,0.00016338,2]
[389519405,1759693832279,-38299.0856532,0.00016338,2]
[389519406,1759693832288,-500.0,0.00016424,2]
[389519407,1759693832302,-571.7642792,0.00016424,2]
[389519408,1759693832313,-500.0,0.00016424,2]
[389519409,1759693832322,-500.0,0.00016424,2]
[389519411,1759693832332,-528.32930575,0.00016424,2]
[389519412,1759693832341,-500.0,0.00016424,2]
[389519414,1759693832350,-500.0,0.00016424,2]
[389519416,1759693832359,-537.82532513,0.00016424,2]
[389519418,1759693832368,-50000.0,0.00016425,2]
[389519420,1759693832376,-743.14,0.00016428,3]
[389519422,1759693832385,-371.57,0.00016428,3]
[389519423,1759693832394,-185.78,0.00016428,3]
[389519425,1759693832404,-557.37,0.00016428,3]
[389519426,1759693832413,-181.72676155,0.00016437,2]
[389519428,1759693832422,-321.83626194,0.00016437,2]
[389519430,1759693832430,-155.0,0.00016437,2]
[389519432,1759693832440,-500.0,0.00016438,2]
[389519434,1759693832449,-500.0,0.00016438,2]
[389519435,1759693832458,-520.0,0.00016438,3]
[389519437,1759693832467,-500.0,0.00016438,2]
[389519438,1759693832476,-500.0,0.00016438,2]
[389519439,1759693832485,-500.0,0.00016438,2]
[389519440,1759693832493,-500.0,0.00016438,2]
[389519441,1759693832503,-500.0,0.00016438,2]
[389519442,1759693832512,-500.0,0.00016438,2]
[389519443,1759693832521,-500.0,0.00016438,2]
[389519444,1759693832530,-626.36,0.00016438,2]
[389519445,1759693832540,-758.13,0.00016438,2]
[389519446,1759693832549,-500.0,0.00016438,2]
[389519447,1759693832557,-500.0,0.00016438,2]
[389519448,1759693832567,-607.6,0.00016438,2]
[389519449,1759693832576,-500.0,0.00016438,2]
[389519450,1759693832585,-500.0,0.00016438,2]
[389519451,1759693832593,-500.0,0.00016438,2]
[389519452,1759693832603,-500.0,0.00016438,2]
[389519453,1759693832611,-500.0,0.00016438,2]
[389519454,1759693832620,-500.0,0.00016438,2]
[389519455,1759693832629,-500.0,0.00016438,2]
[389519456,1759693832638,-500.0,0.00016438,2]
[389519457,1759693832647,-500.0,0.00016438,2]
[389519458,1759693832656,-500.0,0.00016438,2]
[389519459,1759693832665,-588.41416991,0.00016438,2]
[389519460,1759693832675,-500.0,0.00016438,2]
[389519461,1759693832683,-674.88,0.00016438,2]
[389519462,1759693832692,-500.0,0.00016438,2]
[389519463,1759693832701,-500.0,0.00016438,2]
[389519464,1759693832710,-500.0,0.00016438,2]
[389519465,1759693832719,-206.99498242,0.00016438,2]
[389519466,1759693832728,-500.0,0.00016438,2]
[389519467,1759693832737,-500.0,0.00016438,2]
[389519468,1759693832746,-500.0,0.00016438,2]
[389519469,1759693832755,-562.91,0.00016438,2]
[389519470,1759693832765,-500.0,0.00016438,2]
[389519471,1759693832774,-500.0,0.00016438,2]
[389519472,1759693832783,-769.83,0.00016438,2]
[389519473,1759693832792,-500.0,0.00016438,2]
[389519474,1759693832801,-500.0,0.00016438,2]
[389519475,1759693832809,-500.0,0.00016438,2]
[389519476,1759693832818,-1005.06353259,0.00016438,2]
[389519477,1759693832828,-1235.18,0.00016438,2]
[389519478,1759693832837,-500.0,0.00016438,2]
[389519479,1759693832846,-500.0,0.00016438,2]
[389519480,1759693832855,-500.0,0.00016438,2]
[389519481,1759693832864,-503.09289378,0.00016438,2]
[389519482,1759693832873,-500.0,0.00016438,2]
[389519483,1759693832882,-540.3,0.00016438,2]
[389519484,1759693832891,-500.0,0.00016438,2]
[389519485,1759693832899,-466.31725837,0.00016438,2]
[389519486,1759693832910,-500.0,0.00016438,2]
[389519487,1759693832919,-500.0,0.00016438,2]
[389519488,1759693832928,-500.0,0.00016438,2]
[389519489,1759693832937,-500.0,0.00016438,2]
[389519490,1759693832945,-500.0,0.00016438,2]
[389519491,1759693832954,-500.0,0.00016438,2]
[389519492,1759693832963,-570.97,0.00016438,2]
[389519493,1759693832973,-500.0,0.00016438,2]
[389519494,1759693832982,-500.0,0.00016438,2]
[389519495,1759693832991,-435.46879367,0.00016438,2]
[389519496,1759693833000,-500.0,0.00016438,2]
[389519497,1759693833009,-323.78035452,0.00016438,2]
[389519498,1759693833022,-176.21964548,0.00016438,2]
[389519499,1759693833031,-556.00671135,0.00016438,2]
[389519500,1759693833043,-256.95328865,0.00016438,2]
[389519501,1759693833052,-500.0,0.00016438,2]
[389519502,1759693833061,-500.0,0.00016438,2]
[389519503,1759693833070,-500.0,0.00016438,2]
[389519504,1759693833079,-52.54003581,0.00016438,2]
[389519549,1759693838197,-58399.82710048,0.00016326,2]
[389519551,1759693838207,-447.45996419,0.00016438,2]
[389519553,1759693838216,-500.0,0.00016438,2]
[389519555,1759693838226,-500.0,0.00016438,2]
[389519557,1759693838235,-500.0,0.00016438,2]
[389519559,1759693838245,-500.0,0.00016438,2]
[389519561,1759693838254,-500.0,0.00016438,2]
[389519563,1759693838264,-605.27,0.00016438,2]
[389519565,1759693838273,-500.0,0.00016438,2]
[389519567,1759693838282,-472.96517421,0.00016438,2]
[389519569,1759693838291,-500.0,0.00016438,2]
[389519571,1759693838306,-500.0,0.00016438,2]
[389519573,1759693838316,-500.0,0.00016438,2]
[389519575,1759693838325,-500.0,0.00016438,2]
[389519577,1759693838335,-500.0,0.00016438,2]
[389519579,1759693838344,-500.0,0.00016438,2]
[389519581,1759693838354,-500.0,0.00016438,2]
[389519583,1759693838363,-500.0,0.00016438,2]
[389519585,1759693838373,-500.0,0.00016438,2]
[389519587,1759693838383,-500.0,0.00016438,2]
[389519589,1759693838392,-500.0,0.00016438,2]
[389519591,1759693838401,-500.0,0.00016438,2]
[389519593,1759693838411,-500.0,0.00016438,2]
[389519595,1759693838420,-500.0,0.00016438,2]
[389519597,1759693838429,-500.0,0.00016438,2]
[389519599,1759693838440,-1838.04,0.00016438,2]
[389519601,1759693838449,-500.0,0.00016438,2]
[389519603,1759693838458,-500.0,0.00016438,2]
[389519605,1759693838467,-651.56,0.00016438,2]
[389519607,1759693838476,-500.0,0.00016438,2]
[389519609,1759693838486,-1092.5,0.00016438,2]
[389519611,1759693838495,-1194.26,0.00016438,2]
[389519613,1759693838505,-500.0,0.00016438,2]
[389519615,1759693838514,-500.0,0.00016438,2]
[389519617,1759693838523,-500.0,0.00016438,2]
[389519619,1759693838533,-500.0,0.00016438,2]
[389519621,1759693838542,-500.0,0.00016438,2]
[389519623,1759693838552,-500.0,0.00016438,2]
[389519625,1759693838561,-500.0,0.00016438,2]
[389519627,1759693838570,-500.0,0.00016438,2]
[389519629,1759693838579,-500.0,0.00016438,2]
[389519631,1759693838588,-500.0,0.00016438,2]
[389519634,1759693838598,-500.0,0.00016438,2]
[389519635,1759693838607,-500.0,0.00016438,2]
[389519638,1759693838617,-500.0,0.00016438,2]
[389519640,1759693838626,-500.0,0.00016438,2]
[389519642,1759693838636,-500.0,0.00016438,2]
[389519644,1759693838646,-800.06,0.00016438,2]
[389519646,1759693838655,-663.65,0.00016438,2]
[389519647,1759693838664,-1260.74,0.00016438,2]
[389519649,1759693838674,-500.0,0.00016438,2]
[389519651,1759693838683,-569.99,0.00016438,2]
[389519653,1759693838693,-1886.03,0.00016438,2]
[389519655,1759693838702,-328.97343637,0.00016438,2]
[389519657,1759693838711,-500.0,0.00016438,2]
[389519659,1759693838720,-500.0,0.00016438,2]
[389519662,1759693838731,-500.0,0.00016438,2]
[389519664,1759693838740,-500.0,0.00016438,2]
[389519666,1759693838750,-789.18,0.00016438,2]
[389519667,1759693838760,-500.0,0.00016438,2]
[389519669,1759693838769,-500.0,0.00016438,2]
[389519671,1759693838779,-500.0,0.00016438,2]
[389519673,1759693838788,-500.0,0.00016438,2]
[389519675,1759693838797,-500.0,0.00016438,2]
[389519677,1759693838806,-500.0,0.00016438,2]
[389519680,1759693838815,-786.17,0.00016438,2]
[389519682,1759693838824,-500.0,0.00016438,2]
[389519683,1759693838834,-500.0,0.00016438,2]
[389519685,1759693838844,-500.0,0.00016438,2]
[389519687,1759693838853,-500.0,0.00016438,2]
[389519689,1759693838863,-946.01,0.00016438,2]
[389519691,1759693838872,-500.0,0.00016438,2]
[389519693,1759693838882,-483.05601553,0.00016438,2]
[389519695,1759693838892,-776.5,0.00016438,2]
[389519697,1759693838901,-500.0,0.00016438,2]
[389519699,1759693838910,-500.0,0.00016438,2]
[389519701,1759693838920,-500.0,0.00016438,2]
[389519703,1759693838930,-500.0,0.00016438,2]
[389519705,1759693838940,-500.0,0.00016438,2]
[389519707,1759693838950,-500.0,0.00016438,2]
[389519709,1759693838959,-500.0,0.00016438,2]
[389519711,1759693838968,-500.0,0.00016438,2]
[389519713,1759693838978,-500.0,0.00016438,2]
[389519715,1759693838987,-500.0,0.00016438,2]
[389519717,1759693838997,-500.0,0.00016438,2]
[389519719,1759693839006,-500.0,0.00016438,2]
[389519721,1759693839015,-1066.9,0.00016438,2]
[389519723,1759693839025,-500.0,0.00016438,2]
[389519725,1759693839033,-500.0,0.00016438,2]
[389519727,1759693839043,-500.0,0.00016438,2]
[389519729,1759693839052,-500.0,0.00016438,2]
[389519731,1759693839063,-500.0,0.00016438,2]
[389519733,1759693839072,-500.0,0.00016438,2]
[389519735,1759693839082,-500.0,0.00016438,2]
[389519737,1759693839091,-500.0,0.00016438,2]
[389519739,1759693839101,-500.0,0.00016438,2]
[389519741,1759693839110,-500.0,0.00016438,2]
[389519743,1759693839119,-500.0,0.00016438,2]
[389519744,1759693839129,-831.51,0.00016438,2]
[389519745,1759693839139,-500.0,0.00016438,2]
[389519746,1759693839148,-1686.53,0.00016438,2]
[389519747,1759693839158,-909.99,0.00016438,2]
[389519748,1759693839168,-500.0,0.00016438,2]
[389519749,1759693839442,-500.0,0.00016438,2]
[389519750,1759693839453,-500.0,0.00016438,2]
[389519751,1759693839462,-663.48,0.00016438,2]
[389519752,1759693839472,-690.22,0.00016438,2]
[389519753,1759693839482,-500.0,0.00016438,2]
[389519754,1759693839492,-500.0,0.00016438,2]
[389519755,1759693839501,-500.0,0.00016438,2]
[389519756,1759693839512,-500.0,0.00016438,2]
[389519757,1759693839522,-500.0,0.00016438,2]
[389519758,1759693839532,-500.0,0.00016438,2]
[389519759,1759693839541,-417.40881304,0.00016438,2]
[389519760,1759693839551,-500.0,0.00016438,2]
[389519761,1759693839560,-500.0,0.00016438,2]
[389519762,1759693839570,-500.0,0.00016438,2]
[389519763,1759693839580,-500.0,0.00016438,2]
[389519764,1759693839590,-714.23,0.00016438,2]
[389519765,1759693839599,-608.03,0.00016438,2]
[389519766,1759693839609,-942.85,0.00016438,2]
[389519767,1759693839617,-500.0,0.00016438,2]
[389519768,1759693839627,-1663.58,0.00016438,2]
[389519769,1759693839636,-1658.69,0.00016438,2]
[389519770,1759693839645,-500.0,0.00016438,2]
[389519771,1759693839654,-500.0,0.00016438,2]
[389519772,1759693839663,-500.0,0.00016438,2]
[389519773,1759693839672,-500.0,0.00016438,2]
[389519774,1759693839682,-500.0,0.00016438,2]
[389519775,1759693839691,-2784.85,0.00016438,2]
[389519776,1759693839700,-4229.54,0.00016438,2]
[389519777,1759693839710,-500.0,0.00016438,2]
[389519778,1759693839719,-4885.95,0.00016438,2]
[389519779,1759693839728,-500.0,0.00016438,2]
[389519780,1759693839739,-500.0,0.00016438,2]
[389519781,1759693839749,-500.0,0.00016438,2]
[389519782,1759693839758,-500.0,0.00016438,2]
[389519783,1759693839766,-920.78,0.00016438,2]
[389519784,1759693839774,-1208.16,0.00016438,2]
[389519786,1759693839783,-523.46,0.00016438,2]
[389519788,1759693839792,-500.0,0.00016438,2]
[389519789,1759693839802,-500.0,0.00016438,2]
[389519790,1759693839811,-500.0,0.00016438,2]
[389519791,1759693839819,-1050.32,0.00016438,2]
[389519792,1759693839829,-2300.26,0.00016438,2]
[389519793,1759693839838,-717.89,0.00016438,2]
[389519794,1759693839847,-533.5,0.00016438,2]
[389519795,1759693839856,-955.73,0.00016438,2]
[389519796,1759693839865,-1702.31,0.00016438,2]
[389519797,1759693839874,-1493.42,0.00016438,2]
[389519798,1759693839883,-500.0,0.00016438,2]
[389519799,1759693839892,-500.0,0.00016438,2]
[389519801,1759693839901,-500.0,0.00016438,2]
[389519803,1759693839910,-2616.0,0.00016438,2]
[389519805,1759693839919,-500.0,0.00016438,2]
[389519807,1759693839927,-572.41,0.00016438,2]
[389519809,1759693839936,-3516.18,0.00016438,2]
[389519811,1759693839945,-500.0,0.00016438,2]
[389519813,1759693839953,-522.82,0.00016438,2]
[389519815,1759693839962,-500.0,0.00016438,2]
[389519817,1759693839971,-500.0,0.00016438,2]
[389519819,1759693839979,-750.08,0.00016438,2]
[389519821,1759693839988,-552.61,0.00016438,2]
[389519823,1759693839997,-1088.05,0.00016438,2]
[389519824,1759693840006,-827.55,0.00016438,2]
[389519826,1759693840015,-1168.93,0.00016438,2]
[389519828,1759693840024,-500.0,0.00016438,2]
[389519830,1759693840033,-500.0,0.00016438,2]
[389519832,1759693840041,-922.85,0.00016438,2]
[389519835,1759693840052,-2700.64,0.00016438,2]
[389519837,1759693840061,-500.0,0.00016438,2]
[389519838,1759693840070,-3387.73,0.00016438,2]
[389519840,1759693840079,-550.75,0.00016438,2]
[389519842,1759693840088,-500.0,0.00016438,2]
[389519844,1759693840097,-3652.51,0.00016438,2]
[389519846,1759693840106,-500.0,0.00016438,2]
[389519848,1759693840115,-500.0,0.00016438,2]
[389519850,1759693840124,-500.0,0.00016438,2]
[389519851,1759693840132,-500.0,0.00016438,2]
[389519852,1759693840142,-864.87,0.00016438,2]
[389519853,1759693840151,-500.0,0.00016438,2]
[389519855,1759693840160,-616.3,0.00016438,2]
[389519857,1759693840169,-775.37,0.00016438,2]
[389519859,1759693840178,-1015.95,0.00016438,2]
[389519861,1759693840187,-500.0,0.00016438,2]
[389519863,1759693840196,-1156.45,0.00016438,2]
[389519865,1759693840205,-500.0,0.00016438,2]
[389519867,1759693840214,-612.39,0.00016438,2]
[389519868,1759693840223,-1055.93,0.00016438,2]
[389519870,1759693840232,-500.0,0.00016438,2]
[389519872,1759693840241,-584.49,0.00016438,2]
[389519874,1759693840250,-500.0,0.00016438,2]
[389519876,1759693840259,-501.66889399,0.00016438,2]
[389519877,1759693840267,-2687.72,0.00016438,2]
[389519879,1759693840276,-1425.85,0.00016438,2]
[389519880,1759693840285,-500.0,0.00016438,2]
[389519881,1759693840294,-500.0,0.00016438,2]
[389519882,1759693840306,-613.05,0.00016438,2]
[389519883,1759693840315,-1223.44,0.00016438,2]
[389519884,1759693840324,-2136.3,0.00016438,2]
[389519885,1759693840333,-427.70201983,0.00016438,2]
[389519886,1759693840342,-744.95,0.00016438,2]
[389519887,1759693840351,-1385.7,0.00016438,2]
[389519888,1759693840360,-500.0,0.00016438,2]
[389519889,1759693840369,-661.83,0.00016438,2]
[389519890,1759693840378,-1949.0,0.00016438,2]
[389519891,1759693840387,-500.0,0.00016438,2]
[389519892,1759693840396,-500.0,0.00016438,2]
[389519893,1759693840405,-500.0,0.00016438,2]
[389519894,1759693840414,-500.0,0.00016438,2]
[389519895,1759693840422,-500.0,0.00016438,2]
[389519896,1759693840432,-500.0,0.00016438,2]
[389519897,1759693840441,-5637.43,0.00016438,2]
[389519898,1759693840450,-3127.4,0.00016438,2]
[389519899,1759693840459,-549.62031783,0.00016438,2]
[389519900,1759693840468,-500.0,0.00016438,2]
[389519901,1759693840477,-1163.65,0.00016438,2]
[389519902,1759693840486,-500.0,0.00016438,2]
[389519903,1759693840494,-500.0,0.00016438,2]
[389519904,1759693840503,-500.0,0.00016438,2]
[389519905,1759693840512,-616.16,0.00016438,2]
[389519907,1759693840522,-500.0,0.00016438,2]
[389519909,1759693840531,-500.0,0.00016438,2]
[389519911,1759693840539,-500.0,0.00016438,2]
[389519912,1759693840548,-500.0,0.00016438,2]
[389519914,1759693840557,-500.0,0.00016438,2]
[389519916,1759693840567,-500.0,0.00016438,2]
[389519918,1759693840576,-500.0,0.00016438,2]
[389519920,1759693840585,-1216.54,0.00016438,2]
[389519922,1759693840594,-500.0,0.00016438,2]
[389519924,1759693840603,-1446.67,0.00016438,2]
[389519925,1759693840613,-500.0,0.00016438,2]
[389519927,1759693840622,-699.47,0.00016438,2]
[389519929,1759693840631,-344.31856464,0.00016438,2]
[389519932,1759693840640,-500.0,0.00016438,2]
[389519934,1759693840649,-500.0,0.00016438,2]
[389519936,1759693840658,-500.0,0.00016438,2]
[389519937,1759693840668,-757.97,0.00016438,2]
[389519940,1759693840677,-500.0,0.00016438,2]
[389519941,1759693840686,-1804.78,0.00016438,2]
[389519944,1759693840695,-500.0,0.00016438,2]
[389519945,1759693840704,-1414.73,0.00016438,2]
[389519947,1759693840714,-550.17,0.00016438,2]
[389519949,1759693840723,-500.0,0.00016438,2]
[389519952,1759693840732,-500.0,0.00016438,2]
[389519954,1759693840741,-500.0,0.00016438,2]
[389519956,1759693840750,-500.0,0.00016438,2]
[389519957,1759693840759,-500.0,0.00016438,2]
[389519959,1759693840769,-500.0,0.00016438,2]
[389519961,1759693840778,-500.0,0.00016438,2]
[389519963,1759693840787,-1438.52,0.00016438,2]
[389519965,1759693840797,-1679.24,0.00016438,2]
[389519967,1759693840805,-500.0,0.00016438,2]
[389519969,1759693840814,-500.0,0.00016438,2]
[389519971,1759693840823,-1000.0,0.00016438,2]
[389519973,1759693840832,-1613.92212528,0.00016612,2]
[389519975,1759693840841,-300.0,0.00016664,2]
[389519977,1759693840851,-300.0,0.00016664,2]
[389519979,1759693840860,-300.0,0.00016664,2]
[389519981,1759693840871,-300.0,0.00016664,2]
[389519983,1759693840880,-300.0,0.00016664,2]
[389519985,1759693840889,-300.0,0.00016664,2]
[389519987,1759693840898,-300.0,0.00016664,2]
[389519989,1759693840907,-300.0,0.00016664,2]
[389519991,1759693840917,-300.0,0.00016664,2]
[389519993,1759693840926,-300.0,0.00016664,2]
[389519995,1759693840936,-300.0,0.00016664,2]
[389519997,1759693840945,-300.0,0.00016664,2]
[389519999,1759693840954,-300.0,0.00016664,2]
[389520001,1759693840964,-300.0,0.00016664,2]
[389520003,1759693840974,-300.0,0.00016664,2]
[389520005,1759693840983,-324.0,0.000167,2]
[389520007,1759693840992,-553.27703503,0.00016712,2]
[389520009,1759693841000,-500.0,0.00016712,2]
[389520011,1759693841010,-500.0,0.00016712,2]
[389520013,1759693841019,-500.0,0.00016712,2]
[389520015,1759693841028,-500.0,0.00016712,2]
[389520017,1759693841037,-500.0,0.00016712,2]
[389520019,1759693841046,-626.36,0.00016712,2]
[389520021,1759693841055,-758.13,0.00016712,2]
[389520023,1759693841065,-500.0,0.00016712,2]
[389520025,1759693841073,-607.6,0.00016712,2]
[389520027,1759693841083,-500.0,0.00016712,2]
[389520029,1759693841095,-500.0,0.00016712,2]
[389520031,1759693841104,-500.0,0.00016712,2]
[389520033,1759693841113,-500.0,0.00016712,2]
[389520035,1759693841122,-500.0,0.00016712,2]
[389520037,1759693841131,-500.0,0.00016712,2]
[389520039,1759693841141,-500.0,0.00016712,2]
[389520041,1759693841150,-480.0,0.00016712,2]
[389520043,1759693841158,-674.88,0.00016712,2]
[389520045,1759693841169,-500.0,0.00016712,2]
[389520047,1759693841178,-295.42865613,0.00016712,2]
[389520049,1759693841188,-500.0,0.00016712,2]
[389520051,1759693841199,-562.91,0.00016712,2]
[389520053,1759693841208,-500.0,0.00016712,2]
[389520055,1759693841217,-500.0,0.00016712,2]
[389520057,1759693841226,-769.83,0.00016712,2]
[389520059,1759693841235,-500.0,0.00016712,2]
[389520061,1759693841244,-500.0,0.00016712,2]
[389520063,1759693841253,-500.0,0.00016712,2]
[389520065,1759693841264,-1235.18,0.00016712,2]
[389520067,1759693841273,-500.0,0.00016712,2]
[389520069,1759693841282,-500.0,0.00016712,2]
[389520071,1759693841291,-490.20991956,0.00016712,2]
[389520073,1759693841305,-500.0,0.00016712,2]
[389520075,1759693841315,-540.3,0.00016712,2]
[389520077,1759693841324,-500.0,0.00016712,2]
[389520079,1759693841332,-500.0,0.00016712,2]
[389520081,1759693841342,-500.0,0.00016712,2]
[389520083,1759693841352,-500.0,0.00016712,2]
[389520085,1759693841361,-500.0,0.00016712,2]
[389520087,1759693841370,-570.97,0.00016712,2]
[389520089,1759693841381,-500.0,0.00016712,2]
[389520091,1759693841390,-500.0,0.00016712,2]
[389520093,1759693841399,-812.96,0.00016712,2]
[389520095,1759693841409,-500.0,0.00016712,2]
[389520097,1759693841417,-500.0,0.00016712,2]
[389520099,1759693841427,-500.0,0.00016712,2]
[389520101,1759693841435,-552.88,0.00016712,2]
[389520103,1759693841445,-500.0,0.00016712,2]
[389520105,1759693841454,-500.0,0.00016712,2]
[389520107,1759693841464,-492.34956128,0.00016712,2]
[389520108,1759693841473,-605.27,0.00016712,2]
[389520109,1759693841482,-500.0,0.00016712,2]
[389520110,1759693841491,-500.0,0.00016712,2]
[389520111,1759693841500,-500.0,0.00016712,2]
[389520112,1759693841509,-500.0,0.00016712,2]
[389520113,1759693841518,-500.0,0.00016712,2]
[389520114,1759693841528,-500.0,0.00016712,2]
[389520115,1759693841537,-500.0,0.00016712,2]
[389520116,1759693841546,-500.0,0.00016712,2]
[389520117,1759693841555,-500.0,0.00016712,2]
[389520118,1759693841564,-500.0,0.00016712,2]
[389520119,1759693841573,-1838.04,0.00016712,2]
[389520120,1759693841582,-500.0,0.00016712,2]
[389520121,1759693841591,-500.0,0.00016712,2]
[389520122,1759693841600,-651.56,0.00016712,2]
[389520123,1759693841611,-500.0,0.00016712,2]
[389520124,1759693841623,-1092.5,0.00016712,2]
[389520125,1759693841633,-1194.26,0.00016712,2]
[389520126,1759693841645,-207.29082783,0.00016712,2]
[389520127,1759693841657,-500.0,0.00016712,2]
[389520128,1759693841668,-500.0,0.00016712,2]
[389520129,1759693841679,-500.0,0.00016712,2]
[389520130,1759693841690,-500.0,0.00016712,2]
[389520131,1759693841701,-500.0,0.00016712,2]
[389520132,1759693841713,-500.0,0.00016712,2]
[389520133,1759693841724,-500.0,0.00016712,2]
[389520134,1759693841736,-500.0,0.00016712,2]
[389520135,1759693841747,-500.0,0.00016712,2]
[389520136,1759693841758,-500.0,0.00016712,2]
[389520137,1759693841770,-500.0,0.00016712,2]
[389520138,1759693841781,-500.0,0.00016712,2]
[389520139,1759693841793,-800.06,0.00016712,2]
[389520140,1759693841805,-663.65,0.00016712,2]
[389520141,1759693841816,-1260.74,0.00016712,2]
[389520142,1759693841826,-500.0,0.00016712,2]
[389520143,1759693841838,-569.99,0.00016712,2]
[389520144,1759693841849,-1886.03,0.00016712,2]
[389520145,1759693841860,-500.0,0.00016712,2]
[389520146,1759693841869,-500.0,0.00016712,2]
[389520147,1759693841879,-500.0,0.00016712,2]
[389520148,1759693841888,-789.18,0.00016712,2]
[389520149,1759693841899,-500.0,0.00016712,2]
[389520150,1759693841910,-500.0,0.00016712,2]
[389520151,1759693841921,-500.0,0.00016712,2]
[389520152,1759693841931,-500.0,0.00016712,2]
[389520153,1759693841940,-786.17,0.00016712,2]
[389520154,1759693841950,-500.0,0.00016712,2]
[389520155,1759693841959,-500.0,0.00016712,2]
[389520156,1759693841968,-500.0,0.00016712,2]
[389520157,1759693841982,-500.0,0.00016712,2]
[389520158,1759693841991,-946.01,0.00016712,2]
[389520159,1759693842000,-776.5,0.00016712,2]
[389520160,1759693842025,-500.0,0.00016712,2]
[389520161,1759693842034,-500.0,0.00016712,2]
[389520162,1759693842045,-500.0,0.00016712,2]
[389520163,1759693842054,-500.0,0.00016712,2]
[389520164,1759693842065,-500.0,0.00016712,2]
[389520165,1759693842074,-1066.9,0.00016712,2]
[389520166,1759693842083,-500.0,0.00016712,2]
[389520167,1759693842095,-500.0,0.00016712,2]
[389520168,1759693842105,-500.0,0.00016712,2]
[389520169,1759693842115,-500.0,0.00016712,2]
[389520170,1759693842124,-500.0,0.00016712,2]
[389520171,1759693842133,-500.0,0.00016712,2]
[389520172,1759693842142,-500.0,0.00016712,2]
[389520173,1759693842151,-831.51,0.00016712,2]
[389520174,1759693842160,-500.0,0.00016712,2]
[389520175,1759693842169,-1686.53,0.00016712,2]
[389520176,1759693842177,-909.99,0.00016712,2]
[389520177,1759693842186,-500.0,0.00016712,2]
[389520178,1759693842195,-500.0,0.00016712,2]
[389520179,1759693842204,-663.48,0.00016712,2]
[389520180,1759693842213,-690.22,0.00016712,2]
[389520181,1759693842222,-500.0,0.00016712,2]
[389520182,1759693842232,-500.0,0.00016712,2]
[389520183,1759693842242,-500.0,0.00016712,2]
[389520184,1759693842251,-500.0,0.00016712,2]
[389520185,1759693842260,-500.0,0.00016712,2]
[389520186,1759693842270,-500.0,0.00016712,2]
[389520187,1759693842279,-500.0,0.00016712,2]
[389520188,1759693842288,-500.0,0.00016712,2]
[389520189,1759693842297,-714.23,0.00016712,2]
[389520190,1759693842310,-608.03,0.00016712,2]
[389520191,1759693842319,-942.85,0.00016712,2]
[389520192,1759693842329,-500.0,0.00016712,2]